Cogmind - Beta 10 @@@ ROGUE MODE // 2020.09.21 @ 13:36:28 Player: Tmvn Result: Destroyed by G-34 Mercenary with Small Laser Performance ------------- Evolutions (1) 500 Regions Visited (2) 400 Robots Destroyed (14) 70 Value Destroyed (378) 378 Prototype IDs (0) 0 Alien Tech Used (0) 0 Bonus (0) 0 TOTAL SCORE: 1348 Bonus ------- None Cogmind --------- Core Integrity 0/400 Matter 287/300 Energy 100/100 System Corruption 0% Temperature Cool (6) Movement Core (300) Ox5 Location -9/Materials Parts ------- > --- POWER (1) -------- (None) > --- PROPULSION (3) --- (None) > --- UTILITY (3) ------ Large Storage Unit > --- WEAPON (2) ------- (None) > --- INVENTORY (10) --- Aluminum Leg Wheel Wheel Heat Sink Medium Battery (200) Medium Matter Pod (0) Armor Integrity Analyzer Beam Rifle Particle Gun Peak State ------------ > --- POWER ------------ (None) > --- PROPULSION ------- Light Treads Aluminum Leg Aluminum Leg > --- UTILITY ---------- Heat Sink Heat Sink Large Storage Unit > --- WEAPON ----------- Light Assault Rifle Heavy Assault Rifle > --- INVENTORY -------- Light Ion Engine Wheel Wheel Medium Battery Beam Rifle Assault Rifle Light Assault Rifle [Rating: 9] Favorites ----------- Power Light Ion Engine Engine Light Ion Engine Propulsion Aluminum Leg Treads Light Treads Leg Aluminum Leg Utility Large Storage Unit Device Heat Sink Storage Large Storage Unit Protection Light Armor Plating Weapon Light Assault Rifle Ballistic Gun Light Assault Rifle Build | -11 -10 -9 ------- Run | Scr Mat Mat Slots Evolved 2 | . . 2 Power . | . . . Propulsion 1 | . . 1 Utility 1 | . . 1 Weapon . | . . . Parts Attached 16 | . 11 5 Power 2 | . 1 1 Engine 2 | . 1 1 Core . | . . . Reactor . | . . . Propulsion 4 | . 3 1 Treads 1 | . . 1 Leg 3 | . 3 . Wheel . | . . . Hover . | . . . Flight . | . . . Utility 8 | . 6 2 Device 2 | . 1 1 Storage 3 | . 3 . Processor . | . . . Hackware . | . . . Protection 3 | . 2 1 Artifact . | . . . Weapon 2 | . 1 1 Energy Gun . | . . . Energy Cannon . | . . . Ballistic Gun 2 | . 1 1 Ballistic Cannon . | . . . Launcher . | . . . Special Weapon . | . . . Impact Weapon . | . . . Slashing Weapon . | . . . Piercing Weapon . | . . . Special Melee Weapon . | . . . Unidentified Prototypes . | . . . Parts Lost 6 | . . 6 Power 2 | . . 2 Propulsion 1 | . . 1 Utility 1 | . . 1 Weapon 2 | . . 2 Highest Loss Streak 5 | . . 5 Average Slot Usage (%) 90 | . 99 69 Engine 11 | . 13 7 Treads 2 | . . 8 Leg 22 | . 28 8 Device 9 | . 9 6 Storage 13 | . 14 11 Protection 4 | . 3 7 Ballistic Gun 25 | . 28 19 Naked Turns . | . . . Heaviest Build 27 | 10 24 27 Greatest Support 20 | 20 20 20 Greatest Overweight (x) 5 | . 1 5 Average Overweight (x) . | . . 1 Largest Inventory Capacity 10 | 6 10 10 Average Capacity 9 | 6 9 10 Most Carried 10 | 6 10 10 Average Carried 6 | 6 6 7 Final Capacity 10 | 6 10 10 Final Carried 9 | 6 5 9 Class Distribution -------------------- 89% | Mutant 10% | Scavenger-Mutant Dominant Class ---------------- Mutant | -10/Materials Mutant | -9/Materials Resources | -11 -10 -9 ----------- Run | Scr Mat Mat Matter Collected 499 | 200 206 93 Remotely . | . . . Salvage Created 466 | . 251 215 Parts 28 | . 17 11 Haulers Intercepted . | . . . Recyclers Shooed . | . . . Parts Field Recycled . | . . . Retrieved Matter . | . . . Parts Self-Destructed . | . . . Prevented . | . . . Kills | -11 -10 -9 ------- Run | Scr Mat Mat Combat Hostiles Destroyed 14 | . 8 6 Guns 14 | . 8 6 Classes Destroyed 3 | . 2 1 Swarmer 6 | . 3 3 Grunt 5 | . 5 . Sentry 3 | . . 3 Best Kill Streak 3 | . 3 3 Combat Bots Only 3 | . 3 3 Max Kills in Single Turn 1 | . 1 1 Gunslinging . | . . . Exploded . | . . . Melee . | . . . Uniques/NPCs Destroyed . | . . . Combat | -11 -10 -9 -------- Run | Scr Mat Mat Damage Taken 1484 | . 395 1089 Core 468 | . 65 403 Absorbed by Shields . | . . . Core Remaining (%) 87 | 100 74 . Volleys Fired 53 | . 24 29 Largest 2 | . 2 2 Hottest 43 | . 40 43 Shots Fired 96 | . 48 48 Gun 96 | . 48 48 Cannon . | . . . Launcher . | . . . Special . | . . . Kinetic 96 | . 48 48 Thermal . | . . . Explosive . | . . . Electromagnetic . | . . . Robot Hit Streak 16 | . 7 16 Robot Miss Streak 2 | . 2 2 Penetration Max . | . . . Secondary Targets 3 | . 1 2 Max Gunslinging Chain 1 | . 1 1 Shots Hit Robots 67 | . 30 37 Core Hits 28 | . 15 13 Critical Hits 1 | . 1 . Critical Kills 1 | . 1 . Critical Parts Destroyed . | . . . Melee Attacks . | . . . Impact . | . . . Slashing . | . . . Piercing . | . . . Sneak Attacks . | . . . Combat Hostiles . | . . . Follow-up Attacks . | . . . Damage Inflicted 668 | . 285 383 Guns 668 | . 285 383 Cannons . | . . . Explosions . | . . . Melee . | . . . Ramming . | . . . Kinetic 668 | . 285 383 Thermal . | . . . Explosive . | . . . Electromagnetic . | . . . Impact . | . . . Slashing . | . . . Piercing . | . . . Highest Corruption . | . . . Average Corruption . | . . . Corruption Purged . | . . . Overload Shots . | . . . Overflow Damage . | . . . Projectiles . | . . . Explosions . | . . . Melee . | . . . Knockbacks . | . . . Impact . | . . . Kinetic . | . . . Secondary . | . . . Self-Inflicted Damage . | . . . Shots . | . . . Rammed . | . . . Targets Rammed . | . . . Kicked . | . . . Crushed . | . . . Highest Temperature 22 | . 12 22 Average Temperature 8 | . 7 8 Received Heat Transfer 600 | . 159 441 Siege Activations . | . . . Robots Corrupted . | . . . Combat Hostiles . | . . . Parts Fried . | . . . Impact Corruptions . | . . . Robots Melted . | . . . Combat Hostiles . | . . . Parts Melted . | . . . Heat Transferred . | . . . Parts Sabotaged . | . . . Parts Stolen . | . . . Parts Stripped . | . . . Power Chain Reactions . | . . . Missiles Intercepted . | . . . Alert | -11 -10 -9 ------- Run | Scr Mat Mat Peak Influence 120 | . 120 120 Initial . | . . . Average 40 | . 41 71 Maximum Alert Level . | . . . Low Security (%) 100 | 100 100 100 Level 1 . | . . . Level 2 . | . . . Level 3 . | . . . Level 4 . | . . . Level 5 . | . . . High Security . | . . . Max Security . | . . . Squads Dispatched 3 | . 2 1 Investigation 1 | . 1 . Extermination . | . . . Reinforcement 2 | . 1 1 Assault . | . . . Garrison . | . . . Intercept . | . . . Construction Impeded . | . . . Haulers Reinforced . | . . . Stealth | -11 -10 -9 --------- Run | Scr Mat Mat Distress Signals . | . . . Communications Jammed . | . . . Distress Signals . | . . . Times Spotted 32 | . 20 12 Peak Tracking Total 5 | . 5 4 Tactical Retreats 2 | . . 2 Traps | -11 -10 -9 ------- Run | Scr Mat Mat Traps Triggered 1 | . 1 . Indirectly . | . . . Trap Hack Attempts . | . . . Triggered . | . . . Disarmed . | . . . Reprogrammed . | . . . Reused . | . . . Traps Extracted . | . . . Installed . | . . . Triggered . | . . . Machines | -11 -10 -9 ---------- Run | Scr Mat Mat Machines Disabled . | . . . Max in Single Turn . | . . . Machines Sabotaged . | . . . Garrisons Compromised . | . . . Overloaded Fab Kills . | . . . Fab Network Shutdowns . | . . . Hacking | -11 -10 -9 --------- Run | Scr Mat Mat Machines Accessed 5 | . 3 2 Terminals 3 | . 1 2 Fabricators . | . . . Repair Stations 1 | . 1 . Recycling Units 1 | . 1 . Scanalyzers . | . . . Garrison Access . | . . . Total Hacks 13 | . 10 3 Successful 11 | . 9 2 Failed 2 | . 1 1 Catastrophic . | . . . Database Lockouts . | . . . Manual . | . . . Terminals 5 | . 2 3 Fabricators . | . . . Repair Stations 4 | . 4 . Recycling Units 4 | . 4 . Scanalyzers . | . . . Garrison Access . | . . . Terminal Hacks 4 | . 2 2 Record 3 | . 2 1 Alert Level 1 | . . 1 Fabricator Hacks . | . . . Repair Station Hacks 3 | . 3 . Scan Component 2 | . 2 . Repair 1 | . 1 . Recycling Unit Hacks 4 | . 4 . Recycle Component 2 | . 2 . Process 1 | . 1 . Retrieve Matter 1 | . 1 . Scanalyzer . | . . . Garrison Access Hacks . | . . . Unauthorized Hacks . | . . . Terminals . | . . . Fabricators . | . . . Repair Stations . | . . . Recycling Units . | . . . Scanalyzers . | . . . Garrison Access . | . . . Data Cores Recovered . | . . . Used . | . . . Hacking Detections 1 | . 1 . Full Trace Events 1 | . 1 . Feedback Events . | . . . Feedback Blocked . | . . . Robot Schematics Acquired . | . . . Robots Built . | . . . Matter . | . . . Time . | . . . Total Robot Build Rating . | . . . Part Schematics Acquired . | . . . Parts Built . | . . . Matter . | . . . Time . | . . . Total Part Build Rating . | . . . Parts Repaired 1 | . 1 . Time 26 | . 26 . Parts Recycled 2 | . 2 . Recycled Matter 307 | . 307 . Retrieved Matter . | . . . Retrieved Components . | . . . Parts Scanalyzed . | . . . Part Schematics Acquired . | . . . Parts Damaged . | . . . Bothacking | -11 -10 -9 ------------ Run | Scr Mat Mat Used RIF Installer . | . . . Robots Hacked . | . . . Non-combat . | . . . Combat . | . . . Robot Hacks Applied . | . . . Relay Couplers Released . | . . . Robots Rewired . | . . . Allies Hacked . | . . . Hacks Repelled . | . . . Allies | -11 -10 -9 -------- Run | Scr Mat Mat Total Allies . | . . . Largest Group . | . . . Highest-Rated Group . | . . . Highest-Rated Ally . | . . . Total Orders . | . . . Ally Attacks . | . . . Total Damage . | . . . Kills . | . . . Allies Corrupted . | . . . Allies Melted . | . . . Intel | -11 -10 -9 ------- Run | Scr Mat Mat Robot Analysis Total . | . . . Derelict Logs Recovered . | . . . Drone Launches . | . . . Drone Recoveries . | . . . Exploration | -11 -10 -9 ------------- Run | Scr Mat Mat Turns Passed 2401 | 491 1338 572 Spaces Moved 1411 | 410 739 262 Core 13 | . . 13 Treads 222 | . . 222 Legs 1176 | 410 739 27 Wheels . | . . . Hover . | . . . Flight . | . . . Fastest Speed 120 | 120 120 120 Average Speed 145 | 120 147 181 Slowest Speed 300 | 120 150 300 Overloaded Moves . | . . . Propulsion Burnouts . | . . . Robots Hopped . | . . . Cave-ins Triggered . | . . . Exploration Rate (%) 26 | 19 47 12 Regions Visited 2 Branch Regions . Pre-discovered Areas . | . . . Known Exits Taken . | . . . Unknown Exits Taken 2 | 1 1 . Scrap Searched . | . . . Spaces Dug . | . . . Terrain Destroyed . | . . . Melee . | . . . Projectile . | . . . AOE . | . . . Terrain Rammed . | . . . Walls Destroyed . | . . . Machines Disabled . | . . . Actions | -11 -10 -9 --------- Run | Scr Mat Mat Total 1675 | 409 947 319 Wait 162 | . 151 11 Move 1409 | 409 738 262 Hop . | . . . Pick Up 12 | . 8 4 Fast Attach 5 | . 2 3 Attach 5 | . 4 1 Detach 8 | . 4 4 Swap 6 | . 5 1 Drop 15 | . 11 4 Fire 53 | . 24 29 Melee . | . . . Ram . | . . . Kick . | . . . Crush . | . . . Escape Stasis . | . . . Rewire . | . . . Trap . | . . . Miscellaneous . | . . . Route ------- -11/Scrapyard -10/Materials (discovered 2 exits: *Mat / [*Min]) -9/Materials (discovered 1 exit: [*Sto]) History --------- Turn | Location | Event 1 | -11/Scrapyard | Discovered new exit (range 1) 492 | -11/Scrapyard | Entered Materials 493 | -10/Materials | Build established: Mutant 964 | -10/Materials | Repaired Lgt. Ion Engine 1192 | -10/Materials | Discovered new exit (range 12) 1816 | -10/Materials | Discovered new exit (range 8) 1830 | -10/Materials | Entered another Materials area 1830 | -9/Materials | Evolved 2 slots: Propulsion x1, Utility x1 2047 | -9/Materials | Discovered new exit (range 16) 2373 | -9/Materials | Core integrity fell below 50% 2391 | -9/Materials | Core integrity fell below 20% 2393 | -9/Materials | Lost 5 parts (1p1n1u2w) 2402 | -9/Materials | Destroyed by G-34 Mercenary with Small Laser Last Messages --------------- Dropped Lgt. Assault Rifle. Acquired 10 matter. EXIT=FOUND Connecting with Terminal... >>Alert(Check) Current Alert Level: Low Security Acquired Med. Matter Pod. Acquired Armor Integrity Analyzer. Dropped Heat Sink. Dropped Assault Rifle. Acquired Particle Gun. ALERT: Hostiles spotted, dispatching reinforcements to Terminal M002. Hvy. Assault Rifle destroyed. Destroyed Beam Rifle. Lgt. Armor Plating destroyed. Y-45 Defender destroyed. R-06 Scavenger collects Lgt. Armor Plating. Lgt. Ion Engine destroyed. Lgt. Assault Rifle destroyed. Lgt. Treads destroyed. Map ----- +----------------------------------------------------+ | ????????????????????????????????????? | | ????????????????????????????????????? | | ????????????????????????????????????? | | ????????????????????????????????????? | | ????????????????????????????????????? | | ????????????????????????????????????? | | ????????????????????????????????????? | | ????????????????????????????????????? | | ????????????????????????????????????? | | ????????????????????????????????????? | | ???????? ???????????????????????????? | | ???????? ???????????????????????????? | | ???????? ???????????????????????????? | | ???????? ???????????????????????????? | | ???????? ???????????????????????????? | | ???????? ???????????????????????????? | | ???????? ???????????????????????????? | | ???????# #??????????????????????????? | | ???????# #??????????????????????????? | | ???????# #??????????????????????????? | | ???????# #??????????????????????????? | | ???????# #??????????????????????????? | | ???????# #??????????????????????????? | | ???????# #???#####??????????????????? | | ????#+## ##### #??????????????????? | | ????# g @g #??????????######??? | | ????#### ##### #??????????# #??? | | ???????# #???# #??????????# #??? | | ???????# #???# #??????????# [#??? | | ???????# #???# #??????????# !#??? | | ???????# ##### #??????????# #??? | | ???????# ##+############# #??? | | ???????# # #??? | | ???????+ < + #??? | | ???????# # #??? | | ???????# ### ####+#####/######??? | | ???????## ##?# # #??????? | | ????????# #??# # """"" #??????? | | ????????# #??# # """"" #??????? | | ????????# #??# # """"" #??????? | | ????????# #??# # #??????? | | ????????# #??# # "T" #??????? | | ????????# #??# # #??????? | | ????????# ####+#### ########??????? | | ????????# ## ###?????????????? | | ????????# ## #???????????????? | | ????????# ## #???????????????? | | ????????# ## #???????????????? | | ????????# ## #???????????????? | | ????????# ## % #???????????????? | +----------------------------------------------------+ Best States ------------- Heat Dissipation 48 Energy Generation 10 Energy Capacity 325 Matter Stores 300 Matter Capacity 300 Sight Range 16 Terrain Scan Density 10 Armor Coverage 150 Core Shielding 20 Evasion (%) 40 Recoil Reduction 1 Item Schematics ----------------- None Robot Schematics ------------------ None Fabricated ------------ Nothing Alien Tech Used ----------------- None Achievements -------------- None Challenges ------------ None Game ------ Seed MassRocketEdition Manual? 0 Play Time 00:48:00 Cumulative 10.0 hours Start 2020.09.21 @ 11:46:20 End 2020.09.21 @ 13:36:28 Sessions 1 Manual Loads 0 Difficulty Rogue Special Mode None Game No. 26 Rogue 26 Adventurer 0 Explorer 0 Win Type - Total 0 Types 0/0/0/0/0/0/0/0/0 Lore% 17 Gallery% 20 Achievement% 21 Wizard Run 0 Options --------- ASCII 1 Keyboard 1 Movement Arrows Keybinds 0 Fullscreen 2 Font 16/SmallcapsGlow Map View 90x56 Tactical HUD 0 Map Filters BRIGHTNESS(90)|SATURATION(66) Filters BRIGHTNESS(90)|SATURATION(66) Steam X RUN: e5c8871f-62b4-4deb-948c-56480df5902f